bitfinex-derivatives/quotes_SOLF0:USTF0_20250709
["timestamp","ask_amount","ask_price","bid_price","bid_amount"]
[1752025538875,3.84502953,151.27,151.22,6.6111]
[1752025539574,6.6102,151.25,151.22,6.6111]
[1752025540477,6.6104,151.24,151.21,6.65318696]
[1752025540676,3.84502953,151.25,151.21,0.04168696]
[1752025542679,10.45512953,151.25,151.22,6.611]
[1752025544183,6.6104,151.24,151.21,6.65308696]
[1752025549194,6.6104,151.24,151.21,0.04168696]
[1752025549894,6.6104,151.24,151.21,6.65308696]
[1752025551598,6.6101,151.25,151.21,6.65308696]
[1752025551801,6.6101,151.25,151.22,6.6111]
[1752025552400,6.6104,151.24,151.21,6.65318696]
[1752025553301,6.6586905,151.24,151.21,6.65318696]
[1752025556801,9.11996111,151.24,151.21,6.65318696]
[1752025558403,6.6586905,151.24,151.21,6.65318696]
[1752025558604,9.11996111,151.24,151.21,6.65318696]
[1752025558805,6.6586905,151.24,151.21,6.65318696]
[1752025559005,9.11996111,151.24,151.21,6.65318696]
[1752025561006,6.6586905,151.24,151.21,6.65318696]
[1752025561202,9.11996111,151.24,151.21,6.65318696]
[1752025562101,6.6586905,151.24,151.21,6.65318696]
[1752025562305,9.11996111,151.24,151.21,6.65318696]
[1752025564210,6.6586905,151.24,151.21,6.65318696]
[1752025564410,9.11996111,151.24,151.21,6.65318696]
[1752025565207,0.0482905,151.24,151.22,6.611]
[1752025565512,0.0482905,151.24,151.22,2.46127061]
[1752025566609,0.0482905,151.24,151.23,6.6108]
[1752025568014,0.0482905,151.24,151.22,9.07237061]
[1752025575817,0.0482905,151.24,151.23,2.46127061]
[1752025576016,0.0482905,151.24,151.23,9.07207061]
[1752025576615,213.92929192,151.29,151.23,2.46127061]
[1752025576815,2.46127061,151.31,151.27,2.46127061]
[1752025577226,6.608,151.3,151.22,4.5211]
[1752025577717,6.608,151.3,151.27,2.46127061]
[1752025578521,6.608,151.3,151.27,9.07007061]
[1752025578913,6.6075,151.31,151.27,9.07007061]
[1752025579113,8.51224735,151.3,151.27,9.07007061]
[1752025579317,9.06877061,151.31,151.27,9.07007061]
[1752025579524,8.51234614,151.3,151.27,9.07007061]
[1752025579716,8.51234614,151.29,151.27,9.07007061]
[1752025579916,2.2987,151.33,151.28,9.06977061]
[1752025579917,6.6071,151.32,151.28,9.06977061]
[1752025580119,8.5110673,151.31,151.29,2.46127061]
[1752025580321,8.5110673,151.3,151.29,2.46127061]
[1752025582119,9.06847061,151.32,151.29,2.46127061]
[1752025582313,8.50290243,151.31,151.29,2.46127061]
[1752025582518,6.6074,151.31,151.29,2.46127061]
[1752025583925,6.6074,151.31,151.28,6.65141388]
[1752025584120,6.6074,151.31,151.29,2.46127061]
[1752025584321,221.52276486,151.34,151.3,2.46127061]
[1752025584519,219.06149425,151.34,151.31,2.46127061]
[1752025585019,221.52276486,151.34,151.31,2.46127061]
[1752025585625,6.6067,151.33,151.31,2.46127061]
[1752025585925,6.6067,151.33,151.3,9.06887061]
[1752025586127,219.06149425,151.34,151.32,2.46127061]
[1752025586526,225.66759425,151.34,151.32,2.46127061]
[1752025586828,219.06149425,151.34,151.33,2.46127061]
[1752025587425,580.06967577,151.41,151.33,2.46127061]
[1752025587625,6.6046,151.38,151.35,2.46127061]
[1752025587824,8.50915003,151.37,151.35,2.46127061]
[1752025588026,2.46127061,151.39,151.35,0.04748966]
[1752025588328,6.6051,151.36,151.35,0.04748966]
[1752025588924,574.67862885,151.41,151.35,0.04748966]
[1752025589126,8.50715602,151.4,151.35,0.04748966]
[1752025589336,6.6046,151.38,151.35,0.04748966]
[1752025590430,6.6048,151.37,151.35,0.04748966]
[1752025591429,6.6044,151.38,151.35,3.88611851]
[1752025591630,762.42,151.41,151.35,3.88611851]
[1752025591925,8.528258,151.4,151.35,0.04748966]
[1752025592120,762.42,151.41,151.35,0.04748966]
[1752025592526,6.6048,151.37,151.35,0.04748966]
[1752025595534,6.6051,151.36,151.35,0.04748966]
[1752025611544,2.45718175,151.38,151.35,0.04748966]
[1752025611741,6.92328175,151.42,151.37,2.45718175]
[1752025611946,4.76428175,151.42,151.38,2.45718175]
[1752025612341,6.603,151.41,151.38,2.45718175]
[1752025612542,6.603,151.41,151.38,2.50681148]
[1752025612944,6.6034,151.4,151.38,6.65382973]
[1752025613747,6.6034,151.4,151.38,0.04962973]
[1752025616047,2.3071,151.42,151.38,0.04962973]
[1752025616448,3.83685826,151.43,151.38,0.04962973]
[1752025617144,413.52060165,151.44,151.38,0.04962973]
[1752025617448,6.6028,151.42,151.38,6.65362973]
[1752025618150,6.603,151.41,151.38,6.65362973]
[1752025620451,6.6035,151.4,151.38,0.04962973]
[1752025620758,3.83685826,151.43,151.38,0.04962973]
[1752025621052,8.59526394,151.42,151.38,0.04962973]
[1752025621246,6.6038,151.39,151.38,0.04962973]
[1752025622950,6.6036,151.4,151.38,0.04962973]
[1752025623551,6.6031,151.41,151.38,6.65382973]
[1752025624251,6.6027,151.42,151.39,6.6038]
[1752025625252,6.6027,151.42,151.39,10.44065826]
[1752025627861,6.6029,151.41,151.39,10.44065826]
[1752025629356,222.56060165,151.44,151.39,10.44065826]
[1752025629357,6.6027,151.42,151.39,10.44065826]
[1752025630958,6.6027,151.42,151.4,6.6033]
[1752025632862,6.6027,151.42,151.4,9.05839627]
[1752025634559,2.45509627,151.42,151.38,0.04962973]
[1752025634854,2.45509627,151.42,151.38,2.504726]
[1752025635059,2.45509627,151.42,151.38,9.108826]
[1752025635767,6.6032,151.41,151.38,9.108826]
[1752025638068,6.6032,151.41,151.38,6.65372973]
[1752025638262,6.6032,151.41,151.38,9.108826]
[1752025643672,6.6034,151.4,151.38,2.504726]
[1752025644268,6.6034,151.4,151.38,0.04962973]
[1752025648969,9.05889627,151.39,151.38,0.04962973]
[1752025649673,17.69047325,151.39,151.38,0.04962973]
[1752025650868,15.23537698,151.39,151.38,0.04962973]
[1752025651076,17.69047325,151.39,151.38,0.04962973]
[1752025651773,15.23537698,151.39,151.38,0.04962973]
[1752025651974,17.69047325,151.39,151.38,0.04962973]
[1752025652369,17.69047325,151.39,151.3,570.4]
[1752025652370,11.08667325,151.39,151.3,570.4]
[1752025652673,2.45509627,151.37,151.33,2.45509627]
[1752025653065,6.6052,151.36,151.33,9.06129627]
[1752025653363,6.6052,151.36,151.34,2.45509627]
[1752025654469,9.05989627,151.37,151.34,9.06099627]
[1752025654675,6.6048,151.37,151.34,2.45509627]
[1752025655576,6.6048,151.37,151.34,9.06099627]
[1752025656672,6.6048,151.37,151.35,2.45509627]
[1752025658179,6.6051,151.36,151.34,2.45509627]
[1752025658673,6.6055,151.35,151.33,2.45509627]
[1752025658879,2.45509627,151.34,151.3,2.45509627]
[1752025659379,6.6061,151.34,151.31,9.06199627]
[1752025660379,6.6061,151.34,151.31,6.6069]
[1752025660581,6.6061,151.34,151.31,9.06199627]
[1752025660779,6.6061,151.34,151.31,6.6069]
[1752025662079,6.6065,151.33,151.3,6.6075]
[1752025663076,3.84040761,151.35,151.29,10.44850761]
[1752025663281,3.84040761,151.35,151.29,6.6081]
[1752025663482,2.3565,151.39,151.26,3.84040761]
[1752025663682,3.84040761,151.34,151.3,6.6077]
[1752025664281,6.6069,151.32,151.3,6.6077]
[1752025664782,6.6065,151.33,151.3,6.6077]
[1752025664983,3.84040761,151.36,151.28,3.84040761]
[1752025665283,3.84040761,151.36,151.25,2.2015]
[1752025665284,3.84040761,151.36,151.3,3.84040761]
[1752025666180,6.6062,151.34,151.31,6.607]
[1752025668573,6.6068,151.33,151.3,6.6076]
[1752025668778,6.6068,151.33,151.28,3.84040761]
[1752025669182,6.6068,151.33,151.31,6.6073]
[1752025670383,6.6062,151.34,151.31,6.6073]
[1752025670585,3.84040761,151.36,151.3,6.6076]
[1752025672182,6.6065,151.33,151.3,6.6076]
[1752025680493,6.6065,151.33,151.31,6.6072]
[1752025680692,6.6061,151.34,151.31,6.6072]
[1752025680892,3.84040761,151.36,151.31,6.6072]
[1752025681392,3.84040761,151.36,151.28,3.84040761]
[1752025681893,3.84040761,151.36,151.29,6.6078]
[1752025682091,3.84040761,151.36,151.28,3.84040761]
[1752025682494,6.6067,151.33,151.3,6.6077]
[1752025682793,9.06508319,151.33,151.3,6.6077]
[1752025685196,9.06448319,151.34,151.31,6.6073]
[1752025685386,9.06448319,151.34,151.31,2.45838319]
[1752025685788,9.06448319,151.34,151.3,2.45838319]
[1752025686295,6.6066,151.33,151.3,9.06578319]
[1752025688592,6.607,151.32,151.3,2.45838319]
[1752025689596,6.607,151.32,151.3,9.06608319]
[1752025690096,6.607,151.32,151.29,9.06638319]
[1752025691296,6.6074,151.31,151.29,2.45838319]
[1752025691596,6.6074,151.31,151.28,9.06678319]
[1752025694694,6.6074,151.31,151.29,6.6081]
[1752025695400,2.45838319,151.3,151.26,2.45838319]
[1752025695590,2.45838319,151.3,151.25,4.65988319]
[1752025696299,2.45838319,151.31,151.27,2.45838319]
[1752025697699,9.06588319,151.31,151.28,6.6084]
[1752025698103,6.6075,151.31,151.28,6.6084]
[1752025698304,9.06588319,151.31,151.28,6.6084]
[1752025700196,2.265,151.35,151.28,2.45838319]
[1752025700404,2.45838319,151.32,151.28,2.45838319]
[1752025700598,2.45838319,151.32,151.25,2.2015]
[1752025700901,2.45838319,151.32,151.28,2.45838319]
[1752025701297,9.06548319,151.32,151.28,2.45838319]
[1752025702498,9.06548319,151.32,151.29,6.6081]
[1752025703505,9.06548319,151.32,151.28,9.06678319]
[1752025706609,6.6074,151.31,151.28,9.06678319]
[1752025706809,9.06578319,151.31,151.28,6.6084]
[1752025709810,6.6074,151.31,151.28,6.6084]
[1752025710011,9.06578319,151.31,151.28,6.6084]
[1752025711408,2.45838319,151.31,151.29,6.6081]
[1752025711608,9.06548319,151.32,151.29,6.6081]
[1752025711805,2.265,151.35,151.29,2.45838319]
[1752025712003,9.06508319,151.33,151.3,6.6076]
[1752025712205,8.53538619,151.32,151.3,6.6076]
[1752025712406,2.45838319,151.33,151.29,2.45838319]
[1752025712606,15.14258507,151.32,151.29,9.06628319]
[1752025712806,6.6069,151.32,151.29,9.06628319]
[1752025713111,6.6069,151.32,151.29,2.45838319]
[1752025713316,6.6069,151.32,151.29,9.06638319]
[1752025719316,2.265,151.35,151.29,2.45838319]
[1752025719512,8.56635146,151.34,151.31,2.45838319]
[1752025719719,4.72338319,151.35,151.31,2.45838319]
[1752025720318,11.32918319,151.35,151.32,6.6068]
[1752025721218,242.73580417,151.36,151.33,6.6064]
[1752025721514,8.56726918,151.35,151.32,2.45838319]
[1752025721721,245.19418736,151.36,151.32,2.45838319]
[1752025721916,8.56722322,151.35,151.32,9.06508319]
[1752025722115,6.6056,151.35,151.32,9.06508319]
[1752025722417,9.06398319,151.35,151.32,9.06508319]
[1752025724719,6.6056,151.35,151.32,9.06508319]
[1752025724915,9.06398319,151.35,151.32,9.06508319]
[1752025725315,6.6056,151.35,151.32,9.06508319]
[1752025727415,6.6056,151.35,151.33,6.6064]
[1752025728219,245.19418736,151.36,151.33,6.6064]
[1752025729620,6.6056,151.35,151.33,6.6064]
[1752025730221,6.6056,151.35,151.32,9.06508319]
[1752025731721,6.6061,151.34,151.31,9.06548319]
[1752025734413,9.06448319,151.34,151.31,9.06548319]
[1752025734615,6.6061,151.34,151.32,6.6068]
[1752025734819,9.06408319,151.35,151.32,6.6068]
[1752025735023,2.45838319,151.34,151.26,62.0]
[1752025735323,2.45838319,151.33,151.29,2.45838319]
[1752025735622,9.06478319,151.33,151.3,6.6074]
[1752025736922,2.45838319,151.33,151.31,6.6073]
[1752025737222,9.06458319,151.34,151.31,6.6073]
[1752025738323,6.6062,151.34,151.31,6.6073]
[1752025738524,9.06458319,151.34,151.31,6.6073]
[1752025742533,6.6062,151.34,151.31,6.6073]
[1752025742726,6.6062,151.34,151.3,2.45838319]
[1752025742727,6.6062,151.34,151.32,6.6068]
[1752025742925,9.06408319,151.35,151.32,6.6068]
[1752025744630,6.606,151.34,151.32,6.6068]
[1752025747036,9.06408319,151.35,151.32,6.6068]
[1752025748334,6.6057,151.35,151.32,6.6068]
[1752025748531,9.06408319,151.35,151.32,6.6068]
[1752025749636,6.6057,151.35,151.32,6.6068]
[1752025749827,9.06408319,151.35,151.32,6.6068]
[1752025750532,6.6061,151.34,151.32,6.6068]
[1752025750737,9.06448319,151.34,151.32,6.6068]
[1752025751738,9.06448319,151.34,151.31,6.6071]
[1752025752439,6.6065,151.33,151.3,6.6075]
[1752025752640,433.19807693,151.39,151.25,2.2015]
[1752025752641,2.45838319,151.31,151.27,2.45838319]
[1752025752839,2.45838319,151.29,151.26,2.45838319]
[1752025753038,6.608,151.3,151.27,6.6088]
[1752025753239,2.45838319,151.29,151.27,6.6088]
[1752025757843,9.06638319,151.3,151.27,6.6088]
[1752025758040,6.6075,151.31,151.28,6.6085]
[1752025758243,9.21613108,151.37,151.23,570.64]
[1752025758444,2.45838319,151.33,151.29,2.45838319]
[1752025758838,251.55420801,151.39,151.31,2.45838319]
[1752025759041,2.45838319,151.36,151.32,2.45838319]
[1752025759443,6.6056,151.35,151.32,9.06498319]
[1752025760744,6.6056,151.35,151.33,2.45838319]
[1752025760945,6.6056,151.35,151.32,9.06498319]
[1752025762047,6.6056,151.35,151.33,2.45838319]
[1752025763544,9.06358319,151.36,151.33,9.06458319]
[1752025763846,6.6052,151.36,151.33,9.06458319]
[1752025765953,2.45838319,151.34,151.26,2.29]
[1752025766146,2.45838319,151.33,151.29,2.45838319]
[1752025766951,6.6071,151.32,151.29,9.06648319]
[1752025767650,9.06548319,151.32,151.29,9.06648319]
[1752025769552,6.6071,151.32,151.29,9.06648319]
[1752025769753,9.06548319,151.32,151.29,9.06648319]
[1752025770354,6.6071,151.32,151.29,9.06648319]
[1752025770555,9.06548319,151.32,151.29,9.06648319]
[1752025772456,6.6071,151.32,151.29,9.06648319]
[1752025772656,6.6071,151.32,151.3,2.45838319]
[1752025773955,6.6071,151.32,151.29,6.6081]
[1752025774156,6.6071,151.32,151.3,2.45838319]
[1752025775157,6.6071,151.32,151.29,6.6081]
[1752025775352,6.6071,151.32,151.3,2.45838319]
[1752025777152,6.6071,151.32,151.29,6.6081]
[1752025777356,6.6069,151.32,151.29,9.06648319]
[1752025778259,6.6069,151.32,151.3,2.45838319]
[1752025778460,6.6069,151.32,151.29,9.06648319]
[1752025778660,6.6074,151.31,151.29,2.45838319]
[1752025779361,9.21613108,151.37,151.29,2.45838319]
[1752025779563,2.45838319,151.33,151.29,2.45838319]
[1752025779962,6.6069,151.32,151.29,9.06648319]
[1752025780160,9.21613108,151.37,151.29,9.06648319]
[1752025780361,2.45838319,151.33,151.29,9.06648319]
[1752025781464,6.6073,151.31,151.29,2.45838319]
[1752025782057,2.45838319,151.32,151.27,6.6089]
[1752025782263,2.45838319,151.31,151.27,9.06728319]
[1752025783362,6.6078,151.3,151.27,9.06728319]
[1752025783563,2.45838319,151.31,151.27,2.45838319]
[1752025783861,2.45838319,151.3,151.26,11.35768319]
[1752025784664,6.6085,151.29,151.26,11.35768319]
[1752025786465,6.6085,151.29,151.27,9.06738319]
[1752025789467,6.6079,151.3,151.27,9.06738319]
[1752025791969,6.6079,151.3,151.27,6.609]
[1752025792172,6.6079,151.3,151.27,9.06738319]
[1752025792370,2.45838319,151.31,151.28,6.6086]
[1752025792371,9.06598319,151.31,151.28,6.6086]
[1752025792570,6.6076,151.31,151.28,6.6086]
[1752025793167,6.6076,151.31,151.28,9.06698319]
[1752025794667,2.45838319,151.33,151.3,2.45838319]
[1752025795174,9.06508319,151.33,151.3,9.06588319]
[1752025795565,9.06508319,151.33,151.3,6.6075]
[1752025799674,9.06528319,151.32,151.29,6.608]
[1752025799967,6.6069,151.32,151.28,2.45838319]
[1752025800172,6.6063,151.34,151.3,2.45838319]
[1752025800364,2.45838319,151.35,151.31,2.45838319]
[1752025800563,2.45838319,151.36,151.32,2.45838319]
[1752025801263,2.45838319,151.37,151.33,2.45838319]
[1752025801467,8.51911633,151.36,151.33,2.45838319]
[1752025801669,8.51861107,151.35,151.33,2.45838319]
[1752025801867,6.6051,151.36,151.33,9.06468319]
[1752025803669,242.43996012,151.39,151.35,2.45838319]
[1752025803874,8.51970459,151.38,151.35,2.45838319]
[1752025804076,242.43996012,151.39,151.35,2.45838319]
[1752025804374,8.51883874,151.38,151.35,2.45838319]
[1752025804673,6.6049,151.37,151.35,2.45838319]
[1752025807679,6.6049,151.37,151.34,9.06418319]
[1752025810880,6.6049,151.37,151.35,2.45838319]
[1752025811284,6.6049,151.37,151.36,2.45838319]
[1752025811983,6.6049,151.37,151.35,2.45838319]
[1752025812882,6.6049,151.37,151.34,6.6058]
[1752025813280,6.6049,151.37,151.34,9.06418319]
[1752025815181,2.45838319,151.38,151.34,2.45838319]
[1752025815182,6.6051,151.36,151.34,2.45838319]
[1752025818384,6.6051,151.36,151.34,9.06428319]
[1752025819289,2.45838319,151.38,151.34,9.06428319]
[1752025819290,6.6055,151.35,151.34,2.45838319]
[1752025819580,2.45838319,151.36,151.32,2.45838319]
[1752025819787,6.6059,151.35,151.32,9.06518319]
[1752025821192,6.6059,151.35,151.32,2.45838319]
[1752025821492,6.606,151.34,151.31,9.06558319]
[1752025822391,9.06398319,151.35,151.31,9.06558319]
[1752025822592,9.06398319,151.35,151.32,6.6067]
[1752025822794,6.6056,151.35,151.32,6.6067]
[1752025822992,2.2508,151.4,151.32,9.06508319]
[1752025823191,2.45838319,151.36,151.32,9.06508319]
[1752025823392,2.45838319,151.36,151.33,6.6063]
[1752025823590,9.06388319,151.36,151.33,6.6063]
[1752025824994,2.45838319,151.38,151.34,2.45838319]
[1752025825492,9.06288319,151.38,151.35,6.6055]
[1752025826994,9.06228319,151.39,151.35,2.45838319]
[1752025827194,2.45838319,151.4,151.36,2.45838319]
[1752025827787,9.06208319,151.4,151.37,6.6044]
[1752025829195,9.06208319,151.4,151.36,9.06328319]
[1752025830495,6.6037,151.4,151.37,9.06298319]
[1752025832595,6.6038,151.39,151.36,6.6049]
[1752025832893,6.6038,151.39,151.37,2.45838319]
[1752025833093,6.6036,151.4,151.37,9.06298319]
[1752025833294,6.6036,151.4,151.27,13.2176]
[1752025833295,237.02443269,151.41,151.39,2.45838319]
[1752025833896,6.6028,151.42,151.39,9.06208319]
[1752025835298,6.603,151.41,151.39,2.45838319]
[1752025836400,6.603,151.41,151.4,2.45838319]
[1752025836800,6.603,151.41,151.38,10.44014468]
[1752025840307,6.6035,151.4,151.38,3.83604468]
[1752025841502,6.6035,151.4,151.38,10.44024468]
[1752025848001,6.6031,151.41,151.38,10.44024468]
[1752025850810,6.6026,151.42,151.39,6.6038]
[1752025851511,6.6019,151.44,151.4,3.83604468]
[1752025851906,6.6021,151.43,151.4,10.43924468]
[1752025854206,6.6012,151.45,151.4,3.83604468]
[1752025854404,570.66,151.47,151.42,3.83604468]
[1752025854604,8.54471893,151.46,151.42,3.83604468]
[1752025854808,8.54471893,151.45,151.42,3.83604468]
[1752025855004,196.56574468,151.48,151.42,3.83604468]
[1752025855308,8.54471893,151.47,151.42,3.83604468]
[1752025855503,6.6017,151.44,151.42,3.83604468]
[1752025856409,6.10574468,151.48,151.4,6.603]
[1752025856712,8.54266498,151.47,151.4,3.83604468]
[1752025856912,10.99709551,151.46,151.42,2.45443053]
[1752025857114,2.45443053,151.46,151.42,2.45443053]
[1752025857914,6.6021,151.43,151.42,2.45443053]
[1752025859016,2.45443053,151.45,151.37,4.6363]
[1752025859214,11.01177104,151.44,151.4,2.45443053]
[1752025859413,2.45443053,151.45,151.4,2.45443053]
[1752025859613,6.6025,151.42,151.39,6.6036]
[1752025859812,2.45443053,151.42,151.37,4.6363]
[1752025860016,2.45443053,151.42,151.38,2.45443053]
[1752025860213,2.45443053,151.43,151.39,2.45443053]
[1752025860918,6.6026,151.42,151.39,9.05813053]
[1752025862818,6.6026,151.42,151.39,6.6037]
[1752025866625,6.6026,151.42,151.37,2.3832]
[1752025866626,9.17842716,151.47,151.4,3.8363515]
[1752025866822,8.54779481,151.46,151.4,3.8363515]
[1752025867023,8.54779481,151.45,151.4,3.8363515]
[1752025867320,2.2697,151.48,151.41,6.6026]
[1752025867521,2.2697,151.48,151.4,3.8363515]
[1752025867522,8.55028827,151.47,151.4,3.8363515]
[1752025867717,6.6015,151.45,151.42,6.6025]
[1752025869224,6.6015,151.45,151.42,10.4388515]
[1752025869725,6.6016,151.44,151.42,10.4388515]
[1752025871027,3.8363515,151.47,151.39,3.8363515]
[1752025871229,8.56511839,151.46,151.39,3.8363515]
[1752025871523,6.603,151.41,151.39,3.8363515]
[1752025873430,6.603,151.41,151.39,10.4401515]
[1752025874232,6.6027,151.42,151.39,10.4401515]
[1752025874731,6.6027,151.42,151.4,6.6033]
[1752025876338,6.6027,151.42,151.39,10.48236173]
[1752025877539,6.6027,151.42,151.4,6.6033]
[1752025877731,6.64437348,151.43,151.4,6.6033]
[1752025880537,6.6025,151.42,151.4,6.6033]
[1752025880738,0.04217348,151.43,151.4,6.6033]
[1752025882440,6.64447348,151.43,151.4,6.6033]
[1752025884839,6.6027,151.42,151.4,2.45491743]
[1752025885441,6.6027,151.42,151.4,6.6033]
[1752025885641,6.6027,151.42,151.4,9.05821743]
[1752025886041,6.6033,151.41,151.39,2.49742766]
[1752025888246,6.6033,151.41,151.39,9.10122766]
[1752025895050,6.6033,151.41,151.39,6.64631023]
[1752025895250,6.6034,151.4,151.39,2.49742766]
[1752025895452,6.6034,151.4,151.39,0.04251023]
[1752025897956,6.6031,151.41,151.39,0.04251023]
[1752025898155,6.6031,151.41,151.39,2.49742766]
[1752025901952,6.6034,151.4,151.39,0.04251023]
[1752025902152,10.95854408,151.4,151.35,2.45491743]
[1752025902352,6.6051,151.37,151.34,2.45491743]
[1752025903463,6.65404618,151.37,151.34,2.45491743]
[1752025903658,6.65404618,151.37,151.34,9.06061743]
[1752025909160,2.45491743,151.35,151.32,2.45491743]
[1752025909662,2.45491743,151.35,151.32,9.06171743]
[1752025910365,9.06071743,151.35,151.32,9.06171743]
[1752025910569,6.6058,151.35,151.32,9.06171743]
[1752025912965,6.6053,151.36,151.33,9.06131743]
[1752025916469,6.6053,151.36,151.34,2.45491743]
[1752025917175,0.04894618,151.37,151.35,2.45491743]
[1752025918274,0.04894618,151.37,151.36,2.45491743]
[1752025918866,0.04894618,151.37,151.36,6.6051]
[1752025922866,0.04894618,151.37,151.31,3.8372943]
[1752025923574,6.6058,151.35,151.32,6.6067]
[1752025924473,6.6053,151.36,151.33,6.6064]
[1752025926770,6.6053,151.36,151.34,6.6059]
[1752025927170,6.65374618,151.37,151.34,6.6059]
[1752025927376,0.04894618,151.37,151.35,6.6053]
[1752025930778,6.65364618,151.37,151.35,6.6053]
[1752025932280,0.04894618,151.37,151.35,6.6053]
[1752025934281,0.04894618,151.37,151.36,6.6051]
[1752025935282,0.04894618,151.37,151.35,6.6053]
[1752025942882,0.04894618,151.37,151.36,6.6051]
[1752025949391,6.65394618,151.37,151.33,3.8372943]
[1752025949983,6.65394618,151.37,151.34,6.6059]
[1752025950587,6.65394618,151.37,151.35,6.6055]
[1752025953488,0.04894618,151.37,151.3,2.3908]
[1752025953890,3.8372943,151.36,151.29,3.8372943]
[1752025954492,6.6063,151.34,151.31,6.607]
[1752025957596,3.8372943,151.36,151.29,3.8372943]
[1752025957796,8.48163292,151.35,151.27,6.0839943]
[1752025957997,6.1417943,151.36,151.27,6.0839943]
[1752025958198,0.05052761,151.33,151.29,3.8372943]
[1752025959197,0.05052761,151.33,151.31,6.6073]
[1752025960400,6.65702761,151.33,151.31,6.6073]
[1752025966611,0.05052761,151.33,151.31,6.6073]
[1752025977717,6.65702761,151.33,151.31,6.6073]
[1752025977918,6.65702761,151.33,151.3,9.0657758]
[1752025980117,6.65702761,151.33,151.3,6.6075]
[1752025981619,0.05052761,151.33,151.31,6.6073]
[1752025982823,0.05052761,151.33,151.32,9.0651758]
[1752025988819,0.05052761,151.33,151.32,6.6069]
[1752025989025,0.05052761,151.33,151.31,6.6071]
[1752025989222,0.05052761,151.33,151.29,2.4582758]
[1752025989421,2.50880341,151.33,151.29,2.4582758]
[1752025989822,9.11550341,151.33,151.3,6.6075]
[1752025990019,2.50880341,151.33,151.28,2.4582758]
[1752025990220,2.4582758,151.32,151.28,2.4582758]
[1752025990527,9.0653758,151.32,151.29,6.6079]
[1752025991424,6.6071,151.32,151.29,6.6079]
[1752025991626,9.0653758,151.32,151.29,6.6079]
[1752025992828,6.6071,151.32,151.29,6.6079]
[1752025993423,0.05052761,151.33,151.28,6.6084]
[1752025993629,0.05052761,151.33,151.26,3.84198693]
[1752025993829,6.6072,151.32,151.26,3.84198693]
[1752025994035,6.6072,151.32,151.29,6.6081]
[1752026001634,6.65712761,151.33,151.28,3.84198693]
[1752026002636,0.05052761,151.33,151.31,6.6073]
[1752026004532,6.65692761,151.33,151.31,6.6073]
[1752026004738,6.65692761,151.33,151.3,6.6075]
[1752026005135,6.65692761,151.33,151.28,3.84198693]
[1752026006438,6.65692761,151.33,151.3,6.6074]
[1752026006634,0.05052761,151.33,151.23,2.2316]
[1752026006839,0.05052761,151.33,151.26,3.84198693]
[1752026008039,3.89274497,151.33,151.26,3.84221736]
[1752026008635,3.89274497,151.33,151.23,4.5976]
[1752026008835,3.89274497,151.33,151.24,3.84221736]
[1752026009037,6.608,151.3,151.27,6.6088]
[1752026009634,6.6082,151.29,151.27,6.6088]
[1752026011243,6.6082,151.29,151.26,6.6093]
[1752026011445,6.6087,151.28,151.26,6.6093]
[1752026014546,6.65214744,151.29,151.26,6.6093]
[1752026016848,9.11178557,151.29,151.26,6.6093]
[1752026017547,6.6086,151.28,151.26,6.6093]
[1752026018543,6.609,151.27,151.24,6.6101]
[1752026018749,2.45963813,151.27,151.24,6.6101]
[1752026019252,9.06903813,151.27,151.24,6.6101]
[1752026020546,9.06903813,151.27,151.25,6.6099]
[1752026027661,2.45963813,151.27,151.23,2.45963813]
[1752026027958,2.45963813,151.28,151.24,2.45963813]
[1752026028357,6.65982633,151.27,151.25,6.6096]
[1752026028555,6.65982633,151.27,151.24,2.45963813]
[1752026028755,6.65982633,151.27,151.24,9.06983813]
[1752026030563,9.11946446,151.27,151.24,9.06983813]
[1752026033268,9.11946446,151.27,151.24,6.6102]
[1752026038273,0.05062633,151.27,151.26,6.6095]
[1752026038970,0.05062633,151.27,151.25,6.6097]
[1752026039175,6.65972633,151.27,151.19,66.4915]
[1752026039368,9.11936446,151.27,151.24,6.61]
[1752026040373,6.6095,151.26,151.23,9.07023813]
[1752026040570,6.6095,151.26,151.23,6.6106]
[1752026040976,2.45963813,151.26,151.19,4.4915]
[1752026041170,2.45963813,151.24,151.2,2.45963813]
[1752026041578,9.07023813,151.24,151.21,9.07103813]
[1752026042277,9.11926915,151.24,151.21,9.07103813]
[1752026042780,6.65963102,151.24,151.21,9.07103813]
[1752026043580,6.65963102,151.24,151.22,6.6112]
[1752026045878,0.04903102,151.24,151.22,6.6112]